[Event "1st Gujarat GM Open 2018"]
[Site "Ahmedabad"]
[Date "2018.10.10"]
[Round "8"]
[White "Rakshitta Ravi"]
[Black "Manish Anto Cristiano F"]
[Result "1-0"]
[ECO "B98"]
[WhiteElo "2160"]
[BlackElo "1961"]
[Annotator "NA RC"]
[PlyCount "117"]
[EventDate "2018.10.05"]
[EventType "swiss"]
[EventCountry "IND"]
[SourceTitle "playchess.com"]
[Source "ChessBase"]
[SourceQuality "1"]
[TimeControl "5400+30"]

1. e4 {[%emt 0:02:02]} c5 {[%emt 0:00:00]} 2. Nf3 {[%emt 0:00:11]} d6 3. d4 {[%emt 0:00:04]} cxd4 {[%emt 0:00:32]} 4. Nxd4 {[%emt 0:00:06]} Nf6 {[%emt 0:00:32]} 5. Nc3 {[%emt 0:00:05]} a6 {[%emt 0:00:29]} 6. Bg5 {[%emt 0:00:07]} e6 {[%emt 0:00:30]} 7. f4 {[%emt 0:00:24]} Be7 {[%emt 0:00:42]} 8. Qe2 {[%emt 0:00:19]} h6 {[%emt 0:00:21]} 9. Bh4 {[%emt 0:00:05] B98: Sicilian Najdorf: 6 Bg5 e6 7 f4 Be7, sidelines} (9. Bxf6 Bxf6 10. O-O-O Qc7 11. Qd2 Bd7 12. Kb1 b5 13. g4 b4 14. Nce2 Nc6 15. Nf3 Be7 16. h4 a5 {½-½ (48) Jobava,B (2669)-Yilmaz,M (2622) Izmir 2016}) 9... Nxe4 {[%emt 0:09:29]} 10. Bxe7 {[%emt 0:00:30]} Nxc3 {[%emt 0:00:13]} 11. Qc4 {[%emt 0:00:26]} Kxe7 {[%emt 0:02:15]} 12. Qxc3 {[%emt 0:00:04]} Re8 {[%emt 0:04:44]} 13. O-O-O {[%emt 0:00:32]} Kf8 {[%emt 0:00:42]} 14. Nf3 {[%emt 0:00:32]} Kg8 {[%emt 0:01:38]} 15. g4 $146 {[%emt 0:00:26]} ({Predecessor:} 15. Kb1 Qe7 16. Qd3 d5 {1-0 (29) Flores Quillas,D (1999)-Varillas Jimenes,I (1397) Lima 2017}) 15... d5 {[%emt 0:08:41]} 16. g5 {[%emt 0:04:29]} hxg5 {[%emt 0:06:18]} 17. fxg5 {[%emt 0:03:16]} Nc6 {[%emt 0:03:24]} 18. g6 {[%emt 0:06:47]} fxg6 {[%emt 0:01:38]} 19. Rg1 {[%emt 0:20:11]} Qf6 {[%emt 0:01:27]} 20. Qd3 {[%emt 0:02:29]} Qf5 {[%emt 0:08:28]} 21. Qa3 {[%emt 0:12:20]} ({White should try} 21. Ng5 $15) 21... Bd7 {[%emt 0:07:50]} (21... e5 $17 22. Kb1 Rd8) 22. Rg3 $17 {[%emt 0:01:18]} e5 {[%emt 0:03:34]} 23. Kb1 {[%emt 0:19:14]} Rac8 {[%emt 0:01:50]} 24. Bh3 {[%emt 0:03:33]} Qf7 {[%emt 0:01:25]} 25. Ng5 {[%emt 0:00:07]} Qe7 {[%emt 0:00:37]} 26. Qd3 {[%emt 0:00:50]} Bxh3 {[%emt 0:13:25]} 27. Qxg6 {[%emt 0:00:20]} Qf6 {[%emt 0:03:03]} 28. Qh7+ {[%emt 0:01:18]} Kf8 {[%emt 0:00:02]} 29. Rf3 {[%emt 0:02:22]} Qxf3 {[%emt 0:00:19]} 30. Qh8+ {[%emt 0:01:43]} Ke7 {[%emt 0:00:02]} 31. Qxg7+ {[%emt 0:00:05]} Kd6 {[%emt 0:00:17]} 32. Nxf3 {[%emt 0:00:25]} Re7 {[%emt 0:03:17]} 33. Qf6+ {[%emt 0:03:41]} Kc5 {[%emt 0:01:00]} 34. Rd3 {[%emt 0:01:41]} d4 {[%emt 0:01:14]} 35. c3 {[%emt 0:04:23]} Kc4 {[%emt 0:07:51]} 36. Kc2 {[%emt 0:02:13]} Kb5 {[%emt 0:01:14]} 37. Nxd4+ {[%emt 0:08:34]} exd4 {[%emt 0:00:51]} 38. Rxh3 {[%emt 0:00:05]} dxc3 {[%emt 0:00:41]} 39. Rxc3 {[%emt 0:01:32]} Re2+ {[%emt 0:00:20]} 40. Kd1 {[%emt 0:00:40]} Rxh2 {[%emt 0:00:27]} 41. Qf1+ {[%emt 0:00:18]} Ka5 {[%emt 0:00:37]} 42. Ra3+ {[%emt 0:00:25]} Kb6 {[%emt 0:00:42]} 43. Qg1+ {[%emt 0:00:01]} Kc7 {[%emt 0:00:02]} 44. Qxh2+ {[%emt 0:00:01]} Kb6 {[%emt 0:00:02]} 45. Rb3+ {[%emt 0:00:12]} Ka7 {[%emt 0:00:13]} 46. Qf2+ {[%emt 0:00:11]} Ka8 {[%emt 0:00:15]} 47. Qb6 {[%emt 0:00:05]} Rd8+ {[%emt 0:00:10]} 48. Kc1 {[%emt 0:00:17]} Rd7 {[%emt 0:00:20]} 49. Rc3 {[%emt 0:00:19]} Rd6 {[%emt 0:00:27]} 50. Rh3 {[%emt 0:01:09]} Rd8 {[%emt 0:00:15]} 51. Rh7 {[%emt 0:00:05]} Rb8 {[%emt 0:00:11]} 52. b4 {[%emt 0:00:05]} Na7 {[%emt 0:00:11]} 53. a4 {[%emt 0:00:27]} Nc8 {[%emt 0:00:17]} 54. Qd4 {[%emt 0:00:20]} Na7 {[%emt 0:00:09]} 55. b5 {[%emt 0:00:03]} axb5 {[%emt 0:00:09]} 56. axb5 {[%emt 0:00:02]} Nxb5 {[%emt 0:00:03]} 57. Qb6 {[%emt 0:01:11]} Na7 {[%emt 0:00:09]} 58. Kb1 {[%emt 0:00:07]} Nc6 {[%emt 0:00:12]} 59. Rg7 {[%emt 0:00:16]} 1-0

[Event "1st Gujarat GM Open 2018"]
[Site "Ahmedabad"]
[Date "2018.10.12"]
[Round "10"]
[White "Prasad, Devaki V"]
[Black "Shahil Dey"]
[Result "1-0"]
[ECO "B42"]
[WhiteElo "2285"]
[BlackElo "2063"]
[Annotator "RC"]
[PlyCount "93"]
[EventDate "2018.10.05"]
[EventType "swiss"]
[EventCountry "IND"]
[SourceTitle "playchess.com"]
[Source "ChessBase"]
[SourceQuality "1"]
[TimeControl "5400+30"]

1. e4 {[%emt 0:00:00]} c5 {[%emt 0:00:00]} 2. Nf3 {[%emt 0:00:00]} e6 {[%emt 0:00:00]} 3. d4 {[%emt 0:00:00]} cxd4 {[%emt 0:00:00]} 4. Nxd4 {[%emt 0:00:00]} a6 {[%emt 0:00:00]} 5. Bd3 {[%emt 0:00:06]} Nf6 {[%emt 0:00:00]} 6. O-O {[%emt 0:00:14]} Qc7 {[%emt 0:00:00]} 7. Qe2 {[%emt 0:00:18]} d6 {[%emt 0:00:03]} 8. c4 {[%emt 0:00:13]} g6 {[%emt 0:00:09]} 9. Nc3 {[%emt 0:00:19]} Bg7 {[%emt 0:00:08]} 10. Rd1 {[%emt 0:00:52]} O-O {[%emt 0:00:30]} 11. h3 {[%emt 0:00:30]} Nbd7 {[%emt 0:00:00]} 12. Nf3 {[%emt 0:02:41]} b6 {[%emt 0:00:21]} 13. Bg5 {[%emt 0:09:54]} Bb7 {[%emt 0:00:55]} 14. Rac1 {[%emt 0:00:19]} Rac8 {[%emt 0:01:11]} 15. b3 {[%emt 0:00:28]} Rfe8 {[%emt 0:00:38]} 16. Bb1 {[%emt 0:00:28]} h6 {[%emt 0:04:11]} 17. Bf4 {[%emt 0:01:58]} Ne5 {[%emt 0:05:54]} 18. Nxe5 {[%emt 0:09:45]} dxe5 {[%emt 0:00:30]} 19. Be3 {[%emt 0:00:04]} Bc6 {[%emt 0:01:31]} 20. Nb5 {[%emt 0:02:16]} axb5 {[%emt 0:04:11]} 21. cxb5 {[%emt 0:00:04]} Qb7 {[%emt 0:02:37]} 22. bxc6 {[%emt 0:00:09]} Rxc6 {[%emt 0:00:04]} 23. Rxc6 {[%emt 0:09:12]} Qxc6 {[%emt 0:00:06]} 24. Rc1 {[%emt 0:00:16]} Qb7 {[%emt 0:01:10]} 25. Qb5 {[%emt 0:01:00]} Rb8 {[%emt 0:02:13]} 26. Rc6 {[%emt 0:12:06]} Qd7 {[%emt 0:06:47]} 27. Bd3 {[%emt 0:03:29]} Rd8 {[%emt 0:00:41]} 28. Bc2 {[%emt 0:00:40]} Rc8 {[%emt 0:00:44]} 29. Rxc8+ Qxc8 {[%emt 0:00:07]} 30. Bd3 {[%emt 0:00:25]} Nd7 {[%emt 0:00:47]} 31. b4 {[%emt 0:01:51]} f5 {[%emt 0:03:27]} 32. Bc4 {[%emt 0:06:15]} Kf7 {[%emt 0:00:51]} 33. Bb3 {[%emt 0:05:32]} Ke7 {[%emt 0:07:07]} 34. Bxb6 {[%emt 0:07:10]} Qc1+ {[%emt 0:01:18]} 35. Kh2 {[%emt 0:00:04]} Qf4+ {[%emt 0:00:55]} 36. g3 {[%emt 0:00:03]} Qxe4 {[%emt 0:00:10]} 37. Bc5+ {[%emt 0:00:12]} Nxc5 {[%emt 0:02:28]} 38. Qxc5+ {[%emt 0:00:04]} Kf6 {[%emt 0:00:12]} 39. Qd6 {[%emt 0:00:52]} Qd4 {[%emt 0:00:57]} 40. Qxe6+ {[%emt 0:00:44]} Kg5 {[%emt 0:00:01]} 41. f4+ {[%emt 0:14:20]} exf4 {[%emt 0:03:59]} 42. h4+ {[%emt 0:00:05]} Kg4 {[%emt 0:00:07]} 43. Bd1+ {[%emt 0:00:09]} Qxd1 {[%emt 0:02:18]} 44. Qxg6+ {[%emt 0:00:05]} Kf3 {[%emt 0:00:07]} 45. Qh5+ {[%emt 0:00:03]} Kf2 {[%emt 0:00:07]} 46. Qxd1 {[%emt 0:00:07]} fxg3+ {[%emt 0:00:05]} 47. Kh3 {[%emt 0:00:11]} 1-0

[Event "1st Gujarat GM Open 2018"]
[Site "Ahmedabad"]
[Date "2018.10.12"]
[Round "10"]
[White "Jeet, Jain"]
[Black "Arjun Kalyan"]
[Result "1/2-1/2"]
[ECO "C50"]
[WhiteElo "2185"]
[BlackElo "2408"]
[Annotator "RC"]
[PlyCount "65"]
[EventDate "2018.10.05"]
[EventType "swiss"]
[EventCountry "IND"]
[SourceTitle "playchess.com"]
[Source "ChessBase"]
[SourceQuality "1"]
[TimeControl "5400+30"]

1. e4 {[%emt 0:00:00]} e5 {[%emt 0:00:00]} 2. Nf3 {[%emt 0:00:00]} Nc6 {[%emt 0:00:00]} 3. Bc4 {[%emt 0:00:07]} Nf6 {[%emt 0:00:00]} 4. d3 {[%emt 0:00:07]} Bc5 {[%emt 0:00:02]} 5. c3 {[%emt 0:00:07]} a6 {[%emt 0:00:35]} 6. O-O {[%emt 0:00:09]} d6 {[%emt 0:00:07]} 7. Bb3 {[%emt 0:00:10]} h6 {[%emt 0:00:08]} 8. Nbd2 {[%emt 0:00:16]} O-O {[%emt 0:00:14]} 9. h3 {[%emt 0:00:06]} Re8 {[%emt 0:01:12]} 10. Re1 {[%emt 0:00:12]} Be6 {[%emt 0:00:16]} 11. Bxe6 {[%emt 0:00:38]} Rxe6 {[%emt 0:01:09]} 12. b4 {[%emt 0:00:24]} Ba7 {[%emt 0:01:11]} 13. Qc2 {[%emt 0:00:26]} d5 {[%emt 0:02:25]} 14. a4 {[%emt 0:00:31]} Qe8 {[%emt 0:22:39]} 15. Nb3 {[%emt 0:07:00]} Ne7 {[%emt 0:04:13]} 16. c4 {[%emt 0:01:27]} dxe4 {[%emt 0:06:58]} 17. dxe4 {[%emt 0:00:16]} Nc6 {[%emt 0:00:40]} 18. Bd2 {[%emt 0:07:15]} Nd4 {[%emt 0:03:58]} 19. Nbxd4 {[%emt 0:00:59]} Bxd4 {[%emt 0:00:33]} 20. Bc3 {[%emt 0:01:30]} c5 {[%emt 0:06:54]} 21. bxc5 {[%emt 0:03:52]} Bxc3 {[%emt 0:06:24]} 22. Qxc3 {[%emt 0:00:04]} Rc8 {[%emt 0:01:15]} 23. a5 {[%emt 0:06:33]} Rxc5 {[%emt 0:01:18]} 24. Rab1 {[%emt 0:01:26]} Qa4 {[%emt 0:04:12]} 25. Rxb7 {[%emt 0:05:56]} Rxc4 {[%emt 0:02:28]} 26. Qd3 {[%emt 0:02:10]} Rcc6 {[%emt 0:06:46]} 27. Rb8+ {[%emt 0:05:19]} Kh7 {[%emt 0:00:20]} 28. Rf8 {[%emt 0:00:12]} Qxa5 {[%emt 0:08:57]} 29. Rxf7 {[%emt 0:01:19]} Rc7 {[%emt 0:01:46]} 30. Rf8 {[%emt 0:00:47]} Rc3 {[%emt 0:00:52]} 31. Qd2 {[%emt 0:03:02]} Ra3 {[%emt 0:00:25]} 32. Qc1 {[%emt 0:03:05]} Rc3 {[%emt 0:00:37]} 33. Qd2 1/2-1/2